[Event "Early-Titled-Tuesday-Blitz-March-19-2024"]
[Site "Chess.com"]
[Date "2024.03.19"]
[Round "8"]
[White "LornerAcosta"]
[Black "FaustinoOro"]
[Result "1-0"]
[WhiteElo "2625"]
[BlackElo "2868"]
[TimeControl "180+1"]
[EndTime "9:29:40 PDT"]
[Termination "LornerAcosta won on time"]

1. Nf3 {[%clk 0:02:58.9]} 1... Nf6 {[%clk 0:03:00.1]} 2. d4 {[%clk 0:02:58.8]}
2... e6 {[%clk 0:02:58]} 3. e3 {[%clk 0:02:59]} 3... d5 {[%clk 0:02:55]} 4. Bd3
{[%clk 0:02:59.9]} 4... Bd6 {[%clk 0:02:54.4]} 5. Nbd2 {[%clk 0:02:58.3]} 5...
c5 {[%clk 0:02:52.6]} 6. b3 {[%clk 0:02:58.5]} 6... O-O {[%clk 0:02:51.7]} 7.
Bb2 {[%clk 0:02:58.4]} 7... Nc6 {[%clk 0:02:52]} 8. a3 {[%clk 0:02:51]} 8... b6
{[%clk 0:02:37.5]} 9. O-O {[%clk 0:02:46.4]} 9... Bb7 {[%clk 0:02:36.4]} 10. Qe2
{[%clk 0:02:44.1]} 10... cxd4 {[%clk 0:02:25.9]} 11. exd4 {[%clk 0:02:42.8]}
11... Ne7 {[%clk 0:02:25.6]} 12. Ne5 {[%clk 0:02:40.6]} 12... Rc8 {[%clk
0:02:19.3]} 13. f4 {[%clk 0:02:40.1]} 13... Qc7 {[%clk 0:02:06.5]} 14. Rac1
{[%clk 0:02:39.5]} 14... Ng6 {[%clk 0:02:01.1]} 15. g4 {[%clk 0:02:21.9]} 15...
Rfe8 {[%clk 0:01:38.3]} 16. g5 {[%clk 0:02:17.4]} 16... Nd7 {[%clk 0:01:37]} 17.
Rf3 {[%clk 0:01:42.8]} 17... Ndf8 {[%clk 0:01:24.5]} 18. Rcf1 {[%clk 0:01:39]}
18... Ne7 {[%clk 0:01:16.9]} 19. Rh3 {[%clk 0:01:06.6]} 19... Nf5 {[%clk
0:01:10.2]} 20. Qh5 {[%clk 0:00:58.1]} 20... Qe7 {[%clk 0:00:52.7]} 21. b4
{[%clk 0:00:44]} 21... a5 {[%clk 0:00:48.3]} 22. Ndf3 {[%clk 0:00:27.4]} 22...
g6 {[%clk 0:00:26]} 23. Qg4 {[%clk 0:00:23.3]} 23... f6 {[%clk 0:00:18.1]} 24.
gxf6 {[%clk 0:00:22.9]} 24... Qxf6 {[%clk 0:00:19]} 25. bxa5 {[%clk 0:00:16.8]}
25... Ne3 {[%clk 0:00:17.1]} 26. Qg3 {[%clk 0:00:15.8]} 26... Nxf1 {[%clk
0:00:17.4]} 27. Kxf1 {[%clk 0:00:15.7]} 27... bxa5 {[%clk 0:00:17.3]} 28. Ke2
{[%clk 0:00:14.5]} 28... Ra8 {[%clk 0:00:15.1]} 29. Bc1 {[%clk 0:00:14.9]} 29...
Ba6 {[%clk 0:00:15]} 30. Ng4 {[%clk 0:00:15.2]} 30... Bxd3+ {[%clk 0:00:14.6]}
31. cxd3 {[%clk 0:00:15.1]} 31... Qg7 {[%clk 0:00:13.9]} 32. Nh6+ {[%clk
0:00:14.5]} 32... Kh8 {[%clk 0:00:14.3]} 33. Ng5 {[%clk 0:00:14.8]} 33... Ra7
{[%clk 0:00:13.7]} 34. Be3 {[%clk 0:00:13.2]} 34... Rc7 {[%clk 0:00:13.6]} 35.
Qg4 {[%clk 0:00:12.5]} 35... Rce7 {[%clk 0:00:08.4]} 36. Qh4 {[%clk 0:00:12.6]}
36... Rb8 {[%clk 0:00:06.9]} 37. Ng4 {[%clk 0:00:12.5]} 37... Rc7 {[%clk
0:00:05.2]} 38. Ne5 {[%clk 0:00:11.6]} 38... Bxe5 {[%clk 0:00:03.4]} 39. dxe5
{[%clk 0:00:11.4]} 39... Rc2+ {[%clk 0:00:04]} 40. Kf3 {[%clk 0:00:11.6]} 40...
Rb1 {[%clk 0:00:03.8]} 41. Bd4 {[%clk 0:00:10.9]} 41... Rf1+ {[%clk 0:00:04.3]}
42. Ke3 {[%clk 0:00:11.4]} 42... Qb7 {[%clk 0:00:03.6]} 43. Nf3 {[%clk
0:00:10.8]} 43... Rcc1 {[%clk 0:00:03.4]} 44. Qf6+ {[%clk 0:00:10.9]} 44... Qg7
{[%clk 0:00:03.9]} 45. Qg5 {[%clk 0:00:10.5]} 45... Qf7 {[%clk 0:00:03.5]} 46.
Rh4 {[%clk 0:00:09.7]} 46... Qf5 {[%clk 0:00:03.4]} 47. Qe7 {[%clk 0:00:08.9]}
47... Rxf3+ {[%clk 0:00:03.4]} 48. Kxf3 {[%clk 0:00:09]} 48... Qxd3+ {[%clk
0:00:04.1]} 49. Kg4 {[%clk 0:00:08.9]} 49... Qe2+ {[%clk 0:00:04]} 50. Kg5
{[%clk 0:00:09.1]} 1-0

[Event "Early-Titled-Tuesday-Blitz-March-19-2024"]
[Site "Chess.com"]
[Date "2024.03.19"]
[Round "8"]
[White "AnishOnYoutube"]
[Black "nihalsarin"]
[Result "1-0"]
[WhiteElo "3049"]
[BlackElo "3165"]
[TimeControl "180+1"]
[EndTime "9:29:41 PDT"]
[Termination "AnishOnYoutube won by resignation"]

1. e4 {[%clk 0:03:00.9]} 1... a6 {[%clk 0:02:55.3]} 2. d4 {[%clk 0:03:00.8]}
2... c6 {[%clk 0:02:54.4]} 3. Bd3 {[%clk 0:02:53.6]} 3... d5 {[%clk 0:02:53.9]}
4. e5 {[%clk 0:02:53.9]} 4... c5 {[%clk 0:02:52.2]} 5. c3 {[%clk 0:02:39.8]}
5... Nc6 {[%clk 0:02:51.5]} 6. Ne2 {[%clk 0:02:39.9]} 6... Bg4 {[%clk
0:02:36.9]} 7. f3 {[%clk 0:02:37.1]} 7... Bd7 {[%clk 0:02:36.4]} 8. O-O {[%clk
0:02:18.1]} 8... g6 {[%clk 0:02:29.6]} 9. Be3 {[%clk 0:02:08.9]} 9... Nh6 {[%clk
0:02:28.7]} 10. Bf2 {[%clk 0:02:04.7]} 10... Nf5 {[%clk 0:02:27.9]} 11. f4
{[%clk 0:01:56]} 11... c4 {[%clk 0:02:20.9]} 12. Bc2 {[%clk 0:01:54.3]} 12... h5
{[%clk 0:02:21.5]} 13. Nd2 {[%clk 0:01:54.3]} 13... Nh6 {[%clk 0:02:09.7]} 14.
b3 {[%clk 0:01:53]} 14... b5 {[%clk 0:02:08.8]} 15. a4 {[%clk 0:01:53.1]} 15...
Bg7 {[%clk 0:02:05.3]} 16. h3 {[%clk 0:01:31.1]} 16... Bf5 {[%clk 0:01:42.9]}
17. Nf3 {[%clk 0:01:18.4]} 17... O-O {[%clk 0:01:20.8]} 18. b4 {[%clk
0:01:15.3]} 18... Qd7 {[%clk 0:01:13]} 19. Nh4 {[%clk 0:01:07.2]} 19... Bxc2
{[%clk 0:01:08.4]} 20. Qxc2 {[%clk 0:01:08.1]} 20... e6 {[%clk 0:00:54]} 21. Nf3
{[%clk 0:01:04.3]} 21... bxa4 {[%clk 0:00:40.2]} 22. Rxa4 {[%clk 0:01:01.1]}
22... Ra7 {[%clk 0:00:40.3]} 23. Rfa1 {[%clk 0:01:00.2]} 23... Rfa8 {[%clk
0:00:41]} 24. Kh2 {[%clk 0:00:46.4]} 24... Qb7 {[%clk 0:00:40.4]} 25. Qc1 {[%clk
0:00:37.6]} 25... a5 {[%clk 0:00:38.1]} 26. bxa5 {[%clk 0:00:36.8]} 26... Nxa5
{[%clk 0:00:37.1]} 27. Qa3 {[%clk 0:00:24.7]} 27... Bf8 {[%clk 0:00:36.8]} 28.
Qa2 {[%clk 0:00:24.6]} 28... Nc6 {[%clk 0:00:33.5]} 29. Rxa7 {[%clk 0:00:19.9]}
29... Rxa7 {[%clk 0:00:34.4]} 30. Qb1 {[%clk 0:00:19.4]} 30... Qb3 {[%clk
0:00:21.9]} 31. Nfg1 {[%clk 0:00:13.9]} 31... Be7 {[%clk 0:00:12]} 32. Qe1
{[%clk 0:00:12.2]} 32... Rxa1 {[%clk 0:00:06.9]} 33. Qxa1 {[%clk 0:00:13.1]}
33... Kg7 {[%clk 0:00:06.7]} 34. Qa8 {[%clk 0:00:13.7]} 34... Qb6 {[%clk
0:00:03.2]} 35. Nf3 {[%clk 0:00:14]} 35... Qc7 {[%clk 0:00:03.5]} 36. Bh4 {[%clk
0:00:13.3]} 36... Bxh4 {[%clk 0:00:03.5]} 37. Nxh4 {[%clk 0:00:14.2]} 37... Ne7
{[%clk 0:00:04.3]} 38. Ng3 {[%clk 0:00:12.9]} 38... Qd7 {[%clk 0:00:03.8]} 39.
Qa3 {[%clk 0:00:12.2]} 39... Nhf5 {[%clk 0:00:04]} 40. Nhxf5+ {[%clk 0:00:11.9]}
40... Nxf5 {[%clk 0:00:04.9]} 41. Nxf5+ {[%clk 0:00:12.3]} 41... exf5 {[%clk
0:00:04.9]} 42. Qa6 {[%clk 0:00:12.3]} 42... Qe6 {[%clk 0:00:05]} 43. Qxe6
{[%clk 0:00:10.1]} 43... fxe6 {[%clk 0:00:05.9]} 44. Kg3 {[%clk 0:00:08.7]}
44... Kh6 {[%clk 0:00:04.4]} 45. Kh4 {[%clk 0:00:08.6]} 45... g5+ {[%clk
0:00:01.7]} 46. fxg5+ {[%clk 0:00:08.8]} 46... Kg6 {[%clk 0:00:02.5]} 47. g3
{[%clk 0:00:09.4]} 1-0

[Event "Early-Titled-Tuesday-Blitz-March-19-2024"]
[Site "Chess.com"]
[Date "2024.03.19"]
[Round "8"]
[White "visa"]
[Black "Dewarfd"]
[Result "1-0"]
[WhiteElo "2307"]
[BlackElo "2081"]
[TimeControl "180+1"]
[EndTime "9:29:43 PDT"]
[Termination "visa won on time"]

1. Nf3 {[%clk 0:02:56.2]} 1... Nf6 {[%clk 0:02:58.8]} 2. b3 {[%clk 0:02:55.9]}
2... g6 {[%clk 0:02:57.4]} 3. Bb2 {[%clk 0:02:56.2]} 3... Bg7 {[%clk 0:02:57.5]}
4. g3 {[%clk 0:02:56.5]} 4... O-O {[%clk 0:02:55.6]} 5. Bg2 {[%clk 0:02:55.5]}
5... d5 {[%clk 0:02:56.3]} 6. c4 {[%clk 0:02:55.1]} 6... c5 {[%clk 0:02:42.1]}
7. cxd5 {[%clk 0:02:54.8]} 7... Nxd5 {[%clk 0:02:41.6]} 8. Bxg7 {[%clk
0:02:54.5]} 8... Kxg7 {[%clk 0:02:42.5]} 9. d4 {[%clk 0:02:54.6]} 9... cxd4
{[%clk 0:02:38.7]} 10. Qxd4+ {[%clk 0:02:54.5]} 10... Nf6 {[%clk 0:02:35.4]} 11.
Qb2 {[%clk 0:02:39.2]} 11... Qa5+ {[%clk 0:02:30.3]} 12. Nc3 {[%clk 0:02:22.6]}
12... Bg4 {[%clk 0:02:09.9]} 13. O-O {[%clk 0:02:18.9]} 13... Nc6 {[%clk
0:02:06.8]} 14. a3 {[%clk 0:02:17.1]} 14... Rac8 {[%clk 0:02:02.2]} 15. b4
{[%clk 0:02:13.7]} 15... Qc7 {[%clk 0:01:56.5]} 16. Nd5 {[%clk 0:02:09.7]} 16...
Qd6 {[%clk 0:01:51.6]} 17. Rad1 {[%clk 0:01:58.4]} 17... Bxf3 {[%clk 0:01:44.4]}
18. Bxf3 {[%clk 0:01:47.7]} 18... Ne5 {[%clk 0:01:39.4]} 19. Bg2 {[%clk
0:01:07.2]} 19... Rfd8 {[%clk 0:01:32.6]} 20. f4 {[%clk 0:00:57.8]} 20... Neg4
{[%clk 0:01:22.7]} 21. h3 {[%clk 0:00:48.3]} 21... Nh6 {[%clk 0:01:11.1]} 22.
Nxf6 {[%clk 0:00:43.5]} 22... Qxf6 {[%clk 0:01:09.5]} 23. Qxf6+ {[%clk
0:00:43.1]} 23... exf6 {[%clk 0:01:09]} 24. Bxb7 {[%clk 0:00:43.4]} 24... Rb8
{[%clk 0:01:01.8]} 25. Be4 {[%clk 0:00:33.2]} 25... Re8 {[%clk 0:00:59.1]} 26.
Rd4 {[%clk 0:00:29.9]} 26... Rbd8 {[%clk 0:00:54.4]} 27. Rfd1 {[%clk 0:00:28.7]}
27... Rxd4 {[%clk 0:00:52.1]} 28. Rxd4 {[%clk 0:00:29.6]} 28... f5 {[%clk
0:00:43.4]} 29. Bd3 {[%clk 0:00:26.3]} 29... Re7 {[%clk 0:00:43.4]} 30. Kf2
{[%clk 0:00:25.7]} 30... Ng8 {[%clk 0:00:42.6]} 31. Bb5 {[%clk 0:00:25.8]} 31...
Nf6 {[%clk 0:00:41.5]} 32. Kf3 {[%clk 0:00:24.4]} 32... Rc7 {[%clk 0:00:33.5]}
33. Rc4 {[%clk 0:00:22.2]} 33... Re7 {[%clk 0:00:30.5]} 34. a4 {[%clk
0:00:22.1]} 34... Ne4 {[%clk 0:00:25.8]} 35. Rd4 {[%clk 0:00:17.9]} 35... Rc7
{[%clk 0:00:20.5]} 36. Bd3 {[%clk 0:00:15.5]} 36... Nd2+ {[%clk 0:00:14.1]} 37.
Ke3 {[%clk 0:00:14.4]} 37... Nb3 {[%clk 0:00:14.1]} 38. Rc4 {[%clk 0:00:13.1]}
38... Re7+ {[%clk 0:00:12.6]} 39. Kf2 {[%clk 0:00:13.3]} 39... Nd2 {[%clk
0:00:10.7]} 40. Rd4 {[%clk 0:00:11.7]} 40... Nb3 {[%clk 0:00:09.7]} 41. Rd6
{[%clk 0:00:11]} 41... Rb7 {[%clk 0:00:06.6]} 42. b5 {[%clk 0:00:11]} 42... Nc5
{[%clk 0:00:06]} 43. a5 {[%clk 0:00:10.2]} 43... Nxd3+ {[%clk 0:00:04.9]} 44.
exd3 {[%clk 0:00:10.7]} 44... Rxb5 {[%clk 0:00:04.9]} 45. Ra6 {[%clk 0:00:11.4]}
45... Rb7 {[%clk 0:00:04.6]} 46. Ke3 {[%clk 0:00:12]} 46... Kf8 {[%clk
0:00:03.8]} 47. Kd4 {[%clk 0:00:12.6]} 47... Ke7 {[%clk 0:00:04.4]} 48. Kc5
{[%clk 0:00:13.2]} 48... Rd7 {[%clk 0:00:04.3]} 49. d4 {[%clk 0:00:13.1]} 49...
Kd8 {[%clk 0:00:02.5]} 50. d5 {[%clk 0:00:13.4]} 50... Kc7 {[%clk 0:00:02.5]}
51. d6+ {[%clk 0:00:13.1]} 51... Kb7 {[%clk 0:00:02.7]} 52. Kb5 {[%clk
0:00:12.1]} 52... f6 {[%clk 0:00:01.4]} 53. Rc6 {[%clk 0:00:12.1]} 1-0

[Event "Early-Titled-Tuesday-Blitz-March-19-2024"]
[Site "Chess.com"]
[Date "2024.03.19"]
[Round "8"]
[White "Igor_Lysyj"]
[Black "BilodeauA"]
[Result "0-1"]
[WhiteElo "2822"]
[BlackElo "3058"]
[TimeControl "180+1"]
[EndTime "9:29:44 PDT"]
[Termination "BilodeauA won by resignation"]

1. d4 {[%clk 0:02:59.7]} 1... d5 {[%clk 0:03:00.4]} 2. c4 {[%clk 0:02:59.7]}
2... dxc4 {[%clk 0:03:01.3]} 3. Nf3 {[%clk 0:02:59.4]} 3... a6 {[%clk
0:03:01.1]} 4. e3 {[%clk 0:02:57.3]} 4... Bg4 {[%clk 0:03:01.2]} 5. Bxc4 {[%clk
0:02:56.7]} 5... e6 {[%clk 0:03:01.8]} 6. O-O {[%clk 0:02:54.7]} 6... Nf6 {[%clk
0:02:59.4]} 7. Nc3 {[%clk 0:02:53.8]} 7... Nc6 {[%clk 0:02:57.9]} 8. h3 {[%clk
0:02:50.6]} 8... Bh5 {[%clk 0:02:55.6]} 9. Re1 {[%clk 0:02:49.1]} 9... Be7
{[%clk 0:02:48.1]} 10. Bf1 {[%clk 0:02:44.4]} 10... Nd5 {[%clk 0:02:41.3]} 11.
e4 {[%clk 0:02:38]} 11... Bxf3 {[%clk 0:02:31.7]} 12. gxf3 {[%clk 0:02:35.5]}
12... Nxc3 {[%clk 0:02:13.1]} 13. bxc3 {[%clk 0:02:35]} 13... O-O {[%clk
0:02:02]} 14. f4 {[%clk 0:02:34.4]} 14... Na5 {[%clk 0:01:56.6]} 15. c4 {[%clk
0:02:07.3]} 15... f5 {[%clk 0:01:27.7]} 16. e5 {[%clk 0:02:00]} 16... b5 {[%clk
0:01:24.5]} 17. cxb5 {[%clk 0:01:49.9]} 17... axb5 {[%clk 0:01:25]} 18. Bxb5
{[%clk 0:01:45.4]} 18... Qd5 {[%clk 0:01:23.7]} 19. Bf1 {[%clk 0:01:43]} 19...
Rad8 {[%clk 0:01:23.5]} 20. Bg2 {[%clk 0:01:36.9]} 20... Qxd4 {[%clk 0:01:06.7]}
21. Qxd4 {[%clk 0:01:35.7]} 21... Rxd4 {[%clk 0:01:07.3]} 22. Be3 {[%clk
0:01:36.1]} 22... Ra4 {[%clk 0:01:07.5]} 23. Rec1 {[%clk 0:01:34.3]} 23... c5
{[%clk 0:01:02.2]} 24. Rab1 {[%clk 0:01:09.5]} 24... c4 {[%clk 0:00:56.3]} 25.
Rc2 {[%clk 0:01:02.3]} 25... Kf7 {[%clk 0:00:49.9]} 26. Bf1 {[%clk 0:00:55.6]}
26... Rc8 {[%clk 0:00:49.6]} 27. Rb6 {[%clk 0:00:48.1]} 27... c3 {[%clk
0:00:43.2]} 28. Ra6 {[%clk 0:00:45.3]} 28... Ra3 {[%clk 0:00:43.3]} 29. Bb5
{[%clk 0:00:39.1]} 29... Nc4 {[%clk 0:00:37.1]} 30. Bxc4 {[%clk 0:00:29.1]}
30... Rxc4 {[%clk 0:00:38]} 31. Rxa3 {[%clk 0:00:27.8]} 31... Bxa3 {[%clk
0:00:38.6]} 32. Kf1 {[%clk 0:00:28.2]} 32... g5 {[%clk 0:00:39.1]} 33. fxg5
{[%clk 0:00:27.5]} 33... f4 {[%clk 0:00:39.6]} 34. Bc1 {[%clk 0:00:25]} 34...
Bxc1 {[%clk 0:00:25.1]} 35. Rxc1 {[%clk 0:00:25]} 35... f3 {[%clk 0:00:25]} 36.
Ke1 {[%clk 0:00:21.4]} 36... Kg6 {[%clk 0:00:24.5]} 37. Kd1 {[%clk 0:00:20]}
37... Kxg5 {[%clk 0:00:22]} 38. Kc2 {[%clk 0:00:20.5]} 38... Kh4 {[%clk
0:00:14.9]} 39. Kb3 {[%clk 0:00:20]} 39... Rf4 {[%clk 0:00:14.7]} 40. a4 {[%clk
0:00:19.4]} 40... Kxh3 {[%clk 0:00:13.7]} 41. a5 {[%clk 0:00:13.1]} 41... Kg2
{[%clk 0:00:14.2]} 42. Rc2 {[%clk 0:00:12.7]} 42... Rf8 {[%clk 0:00:09.8]} 43.
Kxc3 {[%clk 0:00:09.3]} 43... h5 {[%clk 0:00:08.9]} 44. a6 {[%clk 0:00:08.6]}
44... Ra8 {[%clk 0:00:05.7]} 45. Ra2 {[%clk 0:00:07.5]} 45... h4 {[%clk
0:00:06.4]} 46. Kb4 {[%clk 0:00:03.3]} 46... h3 {[%clk 0:00:06.5]} 47. Kb5
{[%clk 0:00:02.6]} 47... h2 {[%clk 0:00:06.9]} 48. Ra1 {[%clk 0:00:02.9]} 48...
h1=Q {[%clk 0:00:06.6]} 49. Rxh1 {[%clk 0:00:03]} 49... Kxh1 {[%clk 0:00:07.5]}
0-1

[Event "Early-Titled-Tuesday-Blitz-March-19-2024"]
[Site "Chess.com"]
[Date "2024.03.19"]
[Round "8"]
[White "Binary010"]
[Black "VincentKeymer"]
[Result "1-0"]
[WhiteElo "2862"]
[BlackElo "3056"]
[TimeControl "180+1"]
[EndTime "9:29:48 PDT"]
[Termination "Binary010 won by resignation"]

1. e4 {[%clk 0:03:00.9]} 1... c6 {[%clk 0:02:58.6]} 2. d4 {[%clk 0:03:00.8]}
2... d5 {[%clk 0:02:59.5]} 3. e5 {[%clk 0:03:01.4]} 3... Bf5 {[%clk 0:02:58.4]}
4. Nf3 {[%clk 0:03:01.8]} 4... e6 {[%clk 0:02:58.9]} 5. Be2 {[%clk 0:03:02.3]}
5... Ne7 {[%clk 0:02:59.1]} 6. c3 {[%clk 0:03:02.1]} 6... Nd7 {[%clk 0:02:58.3]}
7. O-O {[%clk 0:03:02]} 7... h6 {[%clk 0:02:57.3]} 8. Na3 {[%clk 0:03:02]} 8...
Bh7 {[%clk 0:02:52.3]} 9. Nc2 {[%clk 0:03:01.2]} 9... c5 {[%clk 0:02:52.2]} 10.
dxc5 {[%clk 0:02:51.2]} 10... Nxc5 {[%clk 0:02:51.9]} 11. Be3 {[%clk 0:02:45.3]}
11... Nc6 {[%clk 0:02:51.9]} 12. Ncd4 {[%clk 0:02:34.8]} 12... Be7 {[%clk
0:02:50.1]} 13. Nxc6 {[%clk 0:02:23.4]} 13... bxc6 {[%clk 0:02:50.3]} 14. Nd4
{[%clk 0:02:24.1]} 14... Qc7 {[%clk 0:02:50.3]} 15. b4 {[%clk 0:02:14.6]} 15...
Ne4 {[%clk 0:02:49.4]} 16. Rc1 {[%clk 0:02:08.1]} 16... O-O {[%clk 0:00:57.1]}
17. f3 {[%clk 0:02:03.2]} 17... c5 {[%clk 0:00:57.3]} 18. fxe4 {[%clk
0:01:57.1]} 18... cxd4 {[%clk 0:00:52]} 19. cxd4 {[%clk 0:01:57.8]} 19... Qb6
{[%clk 0:00:46.5]} 20. exd5 {[%clk 0:01:57.3]} 20... exd5 {[%clk 0:00:47.2]} 21.
Bf3 {[%clk 0:01:49.2]} 21... Rad8 {[%clk 0:00:42.3]} 22. Qb3 {[%clk 0:01:46.9]}
22... Be4 {[%clk 0:00:27.8]} 23. Bxe4 {[%clk 0:01:44.2]} 23... dxe4 {[%clk
0:00:28.7]} 24. a3 {[%clk 0:01:23.5]} 24... Bg5 {[%clk 0:00:25.3]} 25. Rc5
{[%clk 0:01:19.2]} 25... Qe6 {[%clk 0:00:18.8]} 26. Qc3 {[%clk 0:01:15]} 26...
Rd7 {[%clk 0:00:19.3]} 27. Bxg5 {[%clk 0:01:11.8]} 27... hxg5 {[%clk 0:00:20.2]}
28. Qe3 {[%clk 0:00:59.6]} 28... Rfd8 {[%clk 0:00:20.4]} 29. Rd1 {[%clk
0:00:59.3]} 29... Qf5 {[%clk 0:00:19.1]} 30. Rc4 {[%clk 0:00:41.5]} 30... Qxe5
{[%clk 0:00:13.7]} 31. dxe5 {[%clk 0:00:37.2]} 31... Rxd1+ {[%clk 0:00:14.1]}
32. Kf2 {[%clk 0:00:37.9]} 32... R8d2+ {[%clk 0:00:09.6]} 33. Kg3 {[%clk
0:00:37.4]} 33... Rd3 {[%clk 0:00:10.2]} 34. Rxe4 {[%clk 0:00:37.6]} 34... Rxe3+
{[%clk 0:00:08.6]} 35. Rxe3 {[%clk 0:00:38.5]} 35... Kf8 {[%clk 0:00:09]} 36.
Rc3 {[%clk 0:00:34.4]} 36... g6 {[%clk 0:00:04]} 37. Kg4 {[%clk 0:00:30.7]}
37... Rd2 {[%clk 0:00:03.8]} 38. g3 {[%clk 0:00:26]} 38... Rxh2 {[%clk 0:00:04]}
39. Rc7 {[%clk 0:00:22.7]} 39... Re2 {[%clk 0:00:03.2]} 40. Rxa7 {[%clk
0:00:20.7]} 40... Rxe5 {[%clk 0:00:03.5]} 41. Rb7 {[%clk 0:00:18.8]} 41... Re4+
{[%clk 0:00:02.1]} 42. Kf3 {[%clk 0:00:13.7]} 42... Rc4 {[%clk 0:00:02.5]} 43.
a4 {[%clk 0:00:13.7]} 43... g4+ {[%clk 0:00:03]} 44. Ke3 {[%clk 0:00:13.7]}
44... g5 {[%clk 0:00:03.2]} 45. a5 {[%clk 0:00:13.5]} 45... Rc3+ {[%clk
0:00:03.9]} 46. Kf2 {[%clk 0:00:13.5]} 46... Rc2+ {[%clk 0:00:04.6]} 47. Kf1
{[%clk 0:00:11.9]} 47... Kg7 {[%clk 0:00:03.7]} 48. a6 {[%clk 0:00:12]} 48...
Ra2 {[%clk 0:00:04.1]} 49. b5 {[%clk 0:00:12.5]} 49... Kf6 {[%clk 0:00:02.3]}
50. a7 {[%clk 0:00:12.7]} 50... Ke5 {[%clk 0:00:02.3]} 51. Rxf7 {[%clk
0:00:09.9]} 51... Ke4 {[%clk 0:00:02.8]} 52. b6 {[%clk 0:00:09.4]} 52... Ke3
{[%clk 0:00:03.5]} 53. b7 {[%clk 0:00:08.5]} 53... Ra1+ {[%clk 0:00:03.7]} 54.
Kg2 {[%clk 0:00:08.9]} 54... Ra2+ {[%clk 0:00:04.6]} 55. Kg1 {[%clk 0:00:09.2]}
55... Ra1+ {[%clk 0:00:03.9]} 56. Rf1 {[%clk 0:00:09.4]} 1-0

[Event "Early-Titled-Tuesday-Blitz-March-19-2024"]
[Site "Chess.com"]
[Date "2024.03.19"]
[Round "8"]
[White "Rutricks"]
[Black "Kostya0705"]
[Result "1-0"]
[WhiteElo "2719"]
[BlackElo "2567"]
[TimeControl "180+1"]
[EndTime "9:29:50 PDT"]
[Termination "Rutricks won by resignation"]

1. Nc3 {[%clk 0:02:54]} 1... d5 {[%clk 0:02:59.5]} 2. d4 {[%clk 0:02:53]} 2...
Nf6 {[%clk 0:02:59.4]} 3. Bf4 {[%clk 0:02:53.1]} 3... a6 {[%clk 0:03:00.3]} 4.
Qd2 {[%clk 0:02:51.5]} 4... b5 {[%clk 0:02:59]} 5. f3 {[%clk 0:02:51.8]} 5...
Bb7 {[%clk 0:02:58.3]} 6. h4 {[%clk 0:02:51.8]} 6... c5 {[%clk 0:02:55.9]} 7. e3
{[%clk 0:02:50.2]} 7... Nc6 {[%clk 0:02:55.4]} 8. h5 {[%clk 0:02:50.2]} 8... h6
{[%clk 0:02:53.2]} 9. O-O-O {[%clk 0:02:33.2]} 9... b4 {[%clk 0:02:53.1]} 10.
Na4 {[%clk 0:02:31.8]} 10... e6 {[%clk 0:02:44.9]} 11. dxc5 {[%clk 0:02:26.2]}
11... e5 {[%clk 0:02:43.3]} 12. Bg3 {[%clk 0:02:25.8]} 12... Qa5 {[%clk
0:02:41.9]} 13. b3 {[%clk 0:02:23.6]} 13... Bxc5 {[%clk 0:02:30.3]} 14. Bh4
{[%clk 0:02:24]} 14... Rd8 {[%clk 0:02:21.1]} 15. Kb1 {[%clk 0:02:22.5]} 15...
Be7 {[%clk 0:02:18.4]} 16. g4 {[%clk 0:02:11]} 16... Na7 {[%clk 0:02:17.5]} 17.
Bg3 {[%clk 0:01:57.7]} 17... Bd6 {[%clk 0:02:15.5]} 18. Qh2 {[%clk 0:01:38.5]}
18... Qc7 {[%clk 0:02:09.7]} 19. Rc1 {[%clk 0:01:18]} 19... Nb5 {[%clk
0:02:08.2]} 20. c4 {[%clk 0:01:18.5]} 20... bxc3 {[%clk 0:02:06.9]} 21. Bxb5+
{[%clk 0:01:18.1]} 21... axb5 {[%clk 0:02:07.3]} 22. Nxc3 {[%clk 0:01:18.3]}
22... Qe7 {[%clk 0:01:52.5]} 23. Nxb5 {[%clk 0:01:15]} 23... Bb8 {[%clk
0:01:52.3]} 24. Ne2 {[%clk 0:01:08.9]} 24... O-O {[%clk 0:01:47.7]} 25. g5
{[%clk 0:01:08.1]} 25... hxg5 {[%clk 0:01:46.3]} 26. h6 {[%clk 0:01:07.6]} 26...
g6 {[%clk 0:01:46.9]} 27. h7+ {[%clk 0:01:07.8]} 27... Kh8 {[%clk 0:01:47.1]}
28. Qh6 {[%clk 0:00:23.5]} 28... Nh5 {[%clk 0:01:44.3]} 29. Be1 {[%clk
0:00:20.6]} 29... d4 {[%clk 0:01:35.7]} 30. Ng3 {[%clk 0:00:11.2]} 30... Ng7
{[%clk 0:01:16.4]} 31. exd4 {[%clk 0:00:10.1]} 31... Bxf3 {[%clk 0:01:15.3]} 32.
Rf1 {[%clk 0:00:10]} 32... exd4 {[%clk 0:00:54.5]} 33. Rxf3 {[%clk 0:00:09.3]}
33... Bxg3 {[%clk 0:00:54.9]} 34. Rxg3 {[%clk 0:00:09.4]} 34... Nf5 {[%clk
0:00:53.6]} 35. Qh2 {[%clk 0:00:07.6]} 35... Qe5 {[%clk 0:00:50.5]} 36. Rg2
{[%clk 0:00:06.9]} 36... Qxb5 {[%clk 0:00:50]} 37. Rf2 {[%clk 0:00:04.1]} 37...
Qd3+ {[%clk 0:00:47.8]} 38. Kb2 {[%clk 0:00:03.8]} 38... Rfe8 {[%clk 0:00:44.4]}
39. Ba5 {[%clk 0:00:02.7]} 39... Ra8 {[%clk 0:00:39.4]} 40. Rd2 {[%clk
0:00:03.3]} 40... Qa6 {[%clk 0:00:34.8]} 41. b4 {[%clk 0:00:03.9]} 41... d3
{[%clk 0:00:30.9]} 42. Qf2 {[%clk 0:00:02.4]} 42... Qf6+ {[%clk 0:00:31.1]} 43.
Kb1 {[%clk 0:00:01.9]} 43... Rxa5 {[%clk 0:00:30.2]} 44. bxa5 {[%clk 0:00:02.1]}
44... Rb8+ {[%clk 0:00:30]} 45. Rb2 {[%clk 0:00:02.8]} 45... Rd8 {[%clk
0:00:20.4]} 46. Qb6 {[%clk 0:00:02.9]} 46... Qe7 {[%clk 0:00:19.9]} 47. a6
{[%clk 0:00:03.2]} 47... d2 {[%clk 0:00:19.5]} 48. Rd1 {[%clk 0:00:03.9]} 48...
Ne3 {[%clk 0:00:08.6]} 49. Rdxd2 {[%clk 0:00:04.1]} 49... Qe4+ {[%clk
0:00:08.6]} 50. Rbc2 {[%clk 0:00:04.7]} 50... Rc8 {[%clk 0:00:05.1]} 51. Qb2+
{[%clk 0:00:04.6]} 51... Kxh7 {[%clk 0:00:04.5]} 52. Rh2+ {[%clk 0:00:04.7]}
52... Qh4 {[%clk 0:00:02.8]} 53. Rxh4+ {[%clk 0:00:04.8]} 1-0